Workbook

Sheet Cost Analysis
B1: Calculate potential profitability
B2: GMO soybeans vs Non-GMO soybeans
B4: Assumptions
B5: GMO Yield (bu/acre) | D5: 60
B6: Non-GMO Yield (bu/acre) | D6: 60
B7: Acres | D7: 1
B8: Futures Price | C8: SX24 | D8: $13.50
B9: Basis | D9: $0.00
B12: Soybean Input Costs/acre*
D13: GMO | E13: Non-GMO
B14: Seed | D14: $75.00 | E14: $55.00
B15: Crop Protection | D15: $75.00 | E15: $90.00
B16: Total Cost | D16: =SUM(D14:D15) -> $150.00 | E16: =SUM(E14:E15) -> $145.00
B20: Estimated Revenue*
D21: GMO | E21: Non-GMO
B22: Futures Reference ($/bu) | D22: =$D$8 -> $13.50 | E22: =$D$8 -> $13.50
B23: Basis | D23: =$D$9 -> 0 | E23: =$D$9 -> 0
B24: Cash Price ($/bu) | D24: =D22+D23 -> $13.50 | E24: =E22+E23 -> $13.50
B25: Premium | D25: 0 | E25: $2.30
B26: Estimated price ($/bu) | D26: =D24+D25 -> $13.50 | E26: =E24+E25 -> $15.80
B27: Total inputs cost ($/bu) | D27: =-($D$14/$D$5)-($D$15/$D$5) -> $(2.50) | E27: =-($E$14/$D$6)-($E$15/$D$6) -> $(2.42)
B28: Total Revenue ($/bu) | D28: =(D26+D27) -> $11.00 | E28: =(E26+E27) -> $13.38
B29: Total Revenue ($/acre) | D29: =D28*$D$5 -> $660.00 | E29: =E28*$D$6 -> $803.00
B31: *We have used typical market prices for seed and inputs in fall 2023. Revenues are estimated and not exact.

Sheet Detailed Analysis
B1: Compare FOB Your Farm Options
B2: Cargill Non-GMO soybeans vs Other locations
B4: Estimated Price at Your Farm*
D5: Cargill Non-GMO | E5: Location A | F5: Location B | G5: Location C
B6: Futures Reference ($/bu) | D6: ='Cost Analysis'!$D$8 -> $13.50 | E6: ='Cost Analysis'!$D$8 -> $13.50 | F6: ='Cost Analysis'!$D$8 -> $13.50 | G6: ='Cost Analysis'!$D$8 -> $13.50
B7: Basis | D7: 0 | E7: $0.20 | F7: $(0.20) | G7: $(0.25)
B8: Cash Price ($/bu) | D8: =D6+D7 -> $13.50 | E8: =E6+E7 -> $13.70 | F8: =F6+F7 -> $13.30 | G8: $13.25
B9: Premium | D9: $2.30 | E9: 0 | F9: 0 | G9: 0
B10: Freight | D10: $0.30 | E10: $0.20 | F10: $0.15 | G10: $0.10
B11: Estimated price at your farm ($/bu) | D11: =D8+D9-D10 -> $15.50 | E11: =E8+E9-E10 -> $13.50 | F11: $13.15 | G11: $13.15
